bitfinex/quotes_BTCUSD_20241110
["timestamp","ask_amount","ask_price","bid_price","bid_amount"]
[1731269826957,2.83185168,79258.0,79257.0,2.001]
[1731269827407,2.64319524,79258.0,79257.0,2.12594221]
[1731269827573,2.63819524,79258.0,79257.0,2.0]
[1731269827790,1.90702524,79258.0,79257.0,2.0488]
[1731269827991,1.60865003,79258.0,79257.0,2.58304255]
[1731269828326,1.60865003,79258.0,79257.0,2.25004221]
[1731269828531,0.51525028,79258.0,79257.0,2.58304255]
[1731269828732,0.51525028,79258.0,79257.0,2.70982476]
[1731269829173,0.51525028,79258.0,79257.0,2.70482476]
[1731269829326,0.26290823,79258.0,79257.0,2.70482476]
[1731269829530,0.10799134,79258.0,79257.0,2.70482476]
[1731269829751,0.005,79270.0,79257.0,2.70482476]
[1731269829956,0.00168,79275.0,79257.0,2.70482476]
[1731269829957,0.18917777,79264.0,79258.0,0.12019228]
[1731269830155,0.005,79269.0,79258.0,0.12019228]
[1731269830403,0.18917777,79268.0,79258.0,0.24636128]
[1731269830735,0.19417568,79264.0,79262.0,0.126163]
[1731269830870,0.19417568,79264.0,79259.0,0.12594221]
[1731269831275,0.19417568,79265.0,79260.0,0.002]
[1731269831470,0.005,79269.0,79261.0,0.11419228]
[1731269831471,0.19417568,79262.0,79261.0,0.11419228]
[1731269831686,0.19417568,79267.0,79257.0,2.60451885]
[1731269831909,0.19417568,79268.0,79258.0,0.002]
[1731269832251,0.005,79272.0,79257.0,2.60451885]
[1731269832252,0.19417568,79267.0,79261.0,0.002]
[1731269832402,0.00417568,79272.0,79261.0,0.002]
[1731269832589,0.18917777,79270.0,79259.0,0.12594221]
[1731269832786,0.18917777,79270.0,79260.0,0.12594221]
[1731269832997,0.18917777,79270.0,79260.0,0.25188442]
[1731269833285,0.00417568,79273.0,79266.0,0.002]
[1731269833483,0.005,79292.0,79266.0,0.002]
[1731269833484,0.252244,79288.0,79273.0,0.126146]
[1731269833707,0.126128,79285.0,79270.0,0.12615]
[1731269833878,0.14894221,79287.0,79273.0,0.126146]
[1731269834081,0.14894221,79287.0,79271.0,0.07391021]
[1731269834296,0.005,79303.0,79271.0,0.07391021]
[1731269834297,0.42367413,79302.0,79271.0,0.07891021]
[1731269834497,0.5,79288.0,79277.0,0.005]
[1731269834701,0.3443733,79287.0,79277.0,0.005]
[1731269834904,0.1443733,79286.0,79278.0,0.0183144]
[1731269835103,0.5,79293.0,79278.0,0.0183144]
[1731269835344,0.5,79293.0,79278.0,0.005]
[1731269835548,0.126116,79292.0,79278.0,0.005]
[1731269835723,0.752229,79293.0,79281.0,0.005]
[1731269835939,0.12612,79290.0,79281.0,0.005]
[1731269836140,0.26458817,79289.0,79281.0,0.005]
[1731269836341,0.126123,79288.0,79282.0,0.0131139]
[1731269836561,0.252232,79292.0,79281.0,0.005]
[1731269836935,0.126125,79287.0,79281.0,0.005]
[1731269837134,0.126125,79286.0,79281.0,0.005]
[1731269837490,0.252235,79291.0,79277.0,0.005]
[1731269837700,0.252264,79282.0,79273.0,0.005]
[1731269837899,0.126141,79277.0,79273.0,0.005]
[1731269838112,0.126128,79284.0,79273.0,0.02850576]
[1731269838231,0.5,79285.0,79273.0,0.02850576]
[1731269838436,0.126138,79279.0,79274.0,0.01552491]
[1731269838679,0.126138,79279.0,79275.0,0.01552491]
[1731269838680,0.17689509,79276.0,79275.0,0.01552491]
[1731269838831,0.17689509,79276.0,79275.0,0.03884575]
[1731269839257,0.126141,79276.0,79275.0,0.01552491]
[1731269839471,0.126141,79276.0,79273.0,0.005]
[1731269839472,0.5,79285.0,79261.0,0.02485083]
[1731269839670,0.17699686,79265.0,79262.0,0.15093486]
[1731269839876,0.17699686,79263.0,79262.0,0.12594221]
[1731269840095,0.36284027,79263.0,79262.0,0.15093813]
[1731269840296,0.18584341,79263.0,79262.0,0.15093813]
[1731269840705,0.18584341,79263.0,79262.0,0.27688034]
[1731269840937,0.18584341,79263.0,79262.0,0.40304334]
[1731269841112,0.3629365,79263.0,79262.0,0.40304334]
[1731269841295,0.18584341,79263.0,79262.0,0.40304334]
[1731269842326,0.53171319,79263.0,79262.0,0.40304334]
[1731269842525,0.53171319,79263.0,79262.0,0.37804742]
[1731269842756,0.18584341,79263.0,79262.0,0.37804742]
[1731269843125,0.18584341,79263.0,79262.0,0.25188442]
[1731269843328,0.18584341,79263.0,79262.0,0.12594221]
[1731269843545,0.66506417,79263.0,79262.0,0.12016721]
[1731269844123,0.93129835,79263.0,79262.0,0.12016721]
[1731269844352,0.126163,79262.0,79261.0,0.02490904]
[1731269844567,0.12617,79258.0,79257.0,1.99584]
[1731269845116,1.48114248,79258.0,79257.0,1.99584]
[1731269845382,1.35497248,79258.0,79257.0,1.99584]
[1731269845770,1.48114248,79258.0,79257.0,1.99584]
[1731269845970,1.35497248,79258.0,79257.0,1.99584]
[1731269846149,1.48114248,79258.0,79257.0,1.99584]
[1731269846810,1.48114248,79258.0,79257.0,0.00084]
[1731269847994,1.79297049,79258.0,79257.0,0.00084]
[1731269848338,1.58114248,79258.0,79257.0,0.00084]
[1731269848525,1.63128093,79258.0,79257.0,0.00084]
[1731269848695,1.63128093,79258.0,79257.0,0.00124]
[1731269849467,1.76222314,79258.0,79257.0,0.00124]
[1731269849635,2.42686665,79258.0,79257.0,0.00124]
[1731269849847,2.30092444,79258.0,79257.0,0.00124]
[1731269850379,1.44041219,79258.0,79257.0,0.00124]
[1731269850789,1.0076068,79258.0,79257.0,0.00124]
[1731269851229,0.9076068,79258.0,79257.0,0.00124]
[1731269851426,0.9076068,79258.0,79257.0,0.01686783]
[1731269851640,0.9076068,79258.0,79257.0,0.01686565]
[1731269851980,1.03354901,79258.0,79257.0,0.00124]
[1731269852161,1.16154901,79258.0,79257.0,0.00124]
[1731269852312,1.17068267,79258.0,79257.0,0.00124]
[1731269852509,1.22148267,79258.0,79257.0,0.00124]
[1731269852935,1.21234901,79258.0,79257.0,0.00124]
[1731269853108,1.34742806,79258.0,79257.0,0.00124]
[1731269853414,1.77110219,79258.0,79257.0,0.00124]
[1731269853607,1.77345678,79258.0,79257.0,1e-06]
[1731269854222,1.77845678,79258.0,79257.0,1e-06]
[1731269854431,1.78045678,79258.0,79257.0,1e-06]
[1731269854646,0.48392518,79255.0,79251.0,0.001426]
[1731269854825,1.75616954,79255.0,79251.0,0.001426]
[1731269855442,2.10051309,79255.0,79251.0,0.001426]
[1731269855651,0.231179,79252.0,79251.0,0.001426]
[1731269855878,1.7498247,79252.0,79251.0,0.001426]
[1731269856129,1.96481778,79252.0,79251.0,0.001426]
[1731269856408,1.74982367,79252.0,79251.0,0.001426]
[1731269857390,1.86576588,79252.0,79251.0,0.001426]
[1731269859017,2.21682367,79252.0,79251.0,0.001426]
[1731269859549,1.49088146,79252.0,79251.0,0.001426]
[1731269859734,1.48674565,79252.0,79251.0,0.001426]
[1731269859939,0.126182,79251.0,79249.0,1.96401524]
[1731269860142,1.06307452,79250.0,79249.0,1.96401524]
[1731269860344,1.06307452,79250.0,79249.0,1.97963095]
[1731269860575,1.06307452,79250.0,79249.0,1.97463095]
[1731269860827,1.06307452,79250.0,79249.0,1.95901524]
[1731269862126,0.93689252,79250.0,79249.0,2.08995745]
[1731269862652,0.93689252,79250.0,79249.0,2.21589966]
[1731269862775,0.93689252,79250.0,79249.0,2.34939966]
[1731269862776,0.32131479,79250.0,79249.0,2.34939966]
[1731269862990,0.12337609,79251.0,79250.0,0.005]
[1731269863185,0.12337609,79255.0,79254.0,0.002]
[1731269863387,0.12337609,79255.0,79254.0,0.37331049]
[1731269863591,0.12337609,79256.0,79255.0,0.126175]
[1731269863801,0.00168,79258.0,79255.0,0.12594221]
[1731269864005,0.00168,79258.0,79254.0,0.11919228]
[1731269864006,0.00168,79258.0,79256.0,0.12594221]
[1731269864206,0.126165,79261.0,79260.0,0.005]
[1731269864486,0.126164,79262.0,79254.0,0.11419228]
[1731269864760,0.126143,79275.0,79255.0,0.25188442]
[1731269864916,0.126162,79263.0,79255.0,0.25188442]
[1731269865123,0.126153,79269.0,79257.0,0.126171]
[1731269865319,0.050445,79292.0,79260.0,0.126165]
[1731269865320,0.1,79282.0,79260.0,0.126165]
[1731269865549,0.1,79282.0,79258.0,0.12594221]
[1731269865550,0.126144,79275.0,79261.0,0.12594221]
[1731269865843,0.10963842,79264.0,79263.0,0.126162]
[1731269866020,0.10963842,79264.0,79263.0,0.01557614]
[1731269866240,0.23579042,79269.0,79263.0,0.01557614]
[1731269866462,0.23579042,79269.0,79264.0,0.01558094]
[1731269866463,0.10963842,79269.0,79264.0,0.01558094]
[1731269866629,0.10963842,79268.0,79264.0,0.12846523]
[1731269866968,0.10963842,79271.0,79264.0,0.12594221]
[1731269867274,0.10969104,79277.0,79265.0,0.05301035]
[1731269867451,0.10969104,79277.0,79264.0,0.12594221]
[1731269867452,0.10969104,79276.0,79249.0,0.1285]
[1731269867653,0.55006206,79282.0,79256.0,0.18917777]
[1731269867654,0.09139486,79257.0,79256.0,0.18917777]
[1731269867856,0.12594221,79281.0,79249.0,0.1285]
[1731269867857,0.252311,79267.0,79249.0,0.1285]
[1731269868067,0.09138506,79253.0,79249.0,0.1285]
[1731269868222,0.09138506,79253.0,79244.0,0.31710816]
[1731269868223,0.07311579,79254.0,79244.0,0.31710816]
[1731269868418,0.03655819,79246.0,79245.0,0.25188442]
[1731269868623,0.05483677,79249.0,79245.0,0.25188442]
[1731269868822,0.03656065,79247.0,79245.0,0.25188442]
[1731269869026,0.03656065,79246.0,79245.0,0.12594221]
[1731269869220,0.07311579,79255.0,79245.0,0.12594221]
[1731269869221,0.126178,79253.0,79245.0,0.12594221]
[1731269869449,0.03656065,79255.0,79245.0,0.12594221]
[1731269869647,0.03656065,79255.0,79247.0,0.126187]
[1731269869850,0.03656065,79258.0,79248.0,0.05312307]
[1731269870072,0.03656065,79259.0,79248.0,0.05312307]
[1731269870388,0.252318,79265.0,79248.0,0.05312307]
[1731269870534,0.252318,79265.0,79245.0,0.12594221]
[1731269870730,0.126172,79257.0,79246.0,0.18917777]
[1731269870951,0.126169,79259.0,79246.0,0.31511998]
[1731269871155,0.126174,79256.0,79246.0,0.31511998]
[1731269871366,0.5,79271.0,79246.0,0.31511998]
[1731269871367,0.126175,79255.0,79246.0,0.31511998]
[1731269871561,0.126183,79250.0,79246.0,0.25188442]
[1731269871821,0.252336,79260.0,79246.0,0.25188442]
[1731269872020,0.126174,79256.0,79246.0,0.25188442]
[1731269872173,0.126174,79256.0,79247.0,0.07170146]
[1731269872746,0.1,79270.0,79247.0,0.07170146]
[1731269872747,0.03659101,79268.0,79247.0,0.07170146]
[1731269872922,0.126186,79248.0,79244.0,0.00173839]
[1731269873129,0.126183,79250.0,79246.0,0.18917777]
[1731269873332,0.5,79263.0,79244.0,0.00173839]
[1731269873536,0.53659101,79263.0,79245.0,0.12594221]
[1731269873708,0.126165,79261.0,79245.0,0.25188442]
[1731269873906,0.252327,79262.0,79245.0,0.25188442]
[1731269874113,0.126159,79265.0,79246.0,0.18917777]
[1731269874353,0.44879961,79270.0,79247.0,0.19764367]
[1731269874354,0.04160809,79270.0,79247.0,0.19764367]
[1731269874494,0.126169,79259.0,79247.0,0.19764367]
[1731269874721,0.126165,79261.0,79247.0,0.19764367]
[1731269874924,0.03659101,79269.0,79247.0,0.12594221]
[1731269875124,0.54069565,79271.0,79247.0,0.12594221]
[1731269875125,0.12618,79252.0,79247.0,0.12594221]
[1731269875456,0.252361,79252.0,79244.0,0.00173839]
[1731269875656,0.126187,79248.0,79244.0,0.00173839]
[1731269875828,0.03659101,79258.0,79244.0,0.00173839]
[1731269876029,0.03659101,79256.0,79244.0,0.00173839]
[1731269876304,0.126187,79248.0,79244.0,0.00173839]
[1731269876451,0.12619,79245.0,79244.0,0.00173839]
[1731269878183,0.252372,79248.0,79244.0,0.00173839]
[1731269878416,0.252372,79248.0,79245.0,0.01561395]
[1731269878536,0.252372,79248.0,79244.0,0.00257639]
[1731269878730,0.12619,79245.0,79244.0,0.00257639]
[1731269878934,0.126188,79247.0,79244.0,0.01819042]
[1731269879141,0.126184,79249.0,79245.0,0.01561403]
[1731269879361,0.29294708,79250.0,79246.0,0.01561403]
[1731269879571,0.126187,79247.0,79244.0,0.1285186]
[1731269879780,0.252366,79250.0,79245.0,0.08731497]
[1731269879983,0.126189,79246.0,79245.0,0.07170146]
[1731269880184,0.126189,79246.0,79245.0,0.08731526]
[1731269880387,0.126189,79246.0,79245.0,0.0156138]
[1731269880664,0.03659101,79255.0,79245.0,0.14155601]
[1731269880847,0.03659101,79256.0,79246.0,0.14155601]
[1731269881044,0.03659101,79258.0,79247.0,0.16653969]
[1731269881287,0.03659101,79258.0,79248.0,0.16653969]
[1731269881427,0.03659101,79258.0,79249.0,0.04059748]
[1731269881621,0.03659101,79259.0,79250.0,0.04312083]
[1731269881822,0.03659101,79260.0,79251.0,0.04059748]
[1731269882176,0.001676,79262.0,79252.0,0.04312081]
[1731269882309,0.001676,79262.0,79252.0,0.16906302]
[1731269882509,0.001676,79262.0,79253.0,0.19860482]
[1731269882726,0.127839,79262.0,79254.0,0.04059748]
[1731269882953,0.127839,79262.0,79255.0,0.04059748]
[1731269883186,0.254004,79262.0,79256.0,0.04059748]
[1731269883356,0.254004,79262.0,79253.0,0.12594221]
[1731269883357,0.254004,79262.0,79257.0,0.0156138]
[1731269883573,0.254004,79262.0,79255.0,0.02498368]
[1731269883774,0.126169,79259.0,79256.0,0.01558022]
[1731269883985,0.001676,79262.0,79257.0,0.01558022]
[1731269884185,0.126167,79260.0,79258.0,0.01558022]
[1731269884448,0.126167,79260.0,79259.0,0.01558022]
[1731269884594,0.001676,79262.0,79254.0,0.00252326]
[1731269885222,0.001676,79262.0,79256.0,0.002]
[1731269885567,0.001676,79262.0,79254.0,0.00252326]
[1731269885568,0.001676,79262.0,79257.0,0.12846532]
[1731269885763,0.001676,79262.0,79257.0,0.12594221]
[1731269885990,0.001676,79262.0,79258.0,0.02494523]
[1731269886146,0.001676,79262.0,79259.0,0.15088744]
[1731269886325,0.001676,79262.0,79260.0,0.02494523]
[1731269886509,0.001676,79262.0,79261.0,0.16777118]
[1731269886715,0.001676,79262.0,79261.0,0.14282595]
[1731269886919,0.04138143,79275.0,79261.0,0.14282595]
[1731269887147,0.126148,79272.0,79261.0,0.14282595]
[1731269887395,0.126152,79270.0,79261.0,0.14282595]
[1731269887592,0.126152,79270.0,79262.0,0.0142826]
[1731269887797,0.023,79276.0,79268.0,0.002]
[1731269888061,0.023,79276.0,79262.0,0.20346037]
[1731269888062,0.126142,79276.0,79269.0,0.12846495]
[1731269888217,0.126141,79276.0,79269.0,0.12594221]
[1731269888416,0.126141,79276.0,79269.0,0.14103095]
[1731269888645,0.04138552,79278.0,79269.0,0.14103095]
[1731269888792,0.16278784,79285.0,79271.0,0.02479072]
[1731269888996,0.04246383,79289.0,79272.0,0.12846478]
[1731269889194,0.04246383,79289.0,79276.0,0.0768]
[1731269889418,0.04246383,79289.0,79277.0,0.12846456]
[1731269889655,0.252213,79298.0,79278.0,0.002]
[1731269889791,0.07332091,79301.0,79278.0,0.002]
[1731269889792,0.252203,79301.0,79279.0,0.15089954]
[1731269889996,0.5,79303.0,79286.0,0.002]
[1731269889997,0.126103,79300.0,79286.0,0.002]
[1731269890176,0.5,79303.0,79287.0,0.02495733]
[1731269890375,0.126104,79300.0,79288.0,0.15089954]
[1731269890581,0.252194,79304.0,79288.0,0.15089954]
[1731269890582,0.126098,79303.0,79289.0,0.01708995]
[1731269890843,0.252181,79308.0,79290.0,0.02495733]
[1731269891016,0.126096,79305.0,79290.0,0.02495733]
[1731269891218,0.252178,79309.0,79292.0,0.002]
[1731269891377,0.126092,79307.0,79299.0,0.02574598]
[1731269891901,0.126081,79314.0,79300.0,0.15089954]
[1731269892094,0.25214,79321.0,79302.0,0.0793]
[1731269892298,0.126076,79317.0,79303.0,0.15336354]
[1731269892536,0.29266533,79321.0,79303.0,0.15336354]
[1731269892537,0.252143,79320.0,79304.0,0.0248997]
[1731269892735,0.126076,79317.0,79305.0,0.05502871]
[1731269892946,0.29266533,79321.0,79305.0,0.03012901]
[1731269893205,0.07332091,79331.0,79306.0,0.12594221]
[1731269893366,0.126077,79317.0,79307.0,0.04645916]
[1731269893577,0.252146,79319.0,79308.0,0.12594221]
[1731269893715,0.5,79333.0,79308.0,0.12594221]
[1731269893915,0.126076,79317.0,79309.0,0.04140862]
[1731269894223,0.126076,79317.0,79310.0,0.12562558]
[1731269894382,0.023,79317.0,79310.0,0.12562558]
[1731269894803,0.023,79322.0,79310.0,0.12562558]
[1731269895125,0.252111,79330.0,79311.0,0.02195413]
[1731269895126,0.023,79318.0,79311.0,0.02195413]
[1731269895242,0.023,79320.0,79312.0,0.31511998]
[1731269895443,0.252114,79329.0,79313.0,0.0025214]
[1731269895734,0.126062,79327.0,79317.0,0.02566277]
[1731269895859,0.252114,79329.0,79317.0,0.02566277]
[1731269896206,0.126057,79330.0,79318.0,0.1284634]
[1731269896350,0.04148291,79334.0,79317.0,0.02566277]
[1731269896707,0.001428,79338.0,79304.0,0.21401209]
[1731269896708,0.126087,79310.0,79304.0,0.21401209]
[1731269896900,0.5,79325.0,79309.0,0.0155083]
[1731269897117,0.5,79325.0,79304.0,0.18917777]
[1731269897118,0.12609,79309.0,79304.0,0.18917777]
[1731269897247,0.126085,79311.0,79305.0,0.0155068]
[1731269897449,0.252162,79315.0,79306.0,0.03597526]
[1731269897654,0.126078,79316.0,79307.0,0.0155068]
[1731269897909,0.252136,79322.0,79308.0,0.01802836]
[1731269898051,0.126076,79317.0,79309.0,0.04075901]
[1731269898259,0.12608,79315.0,79310.0,0.0155068]
[1731269898464,0.252146,79319.0,79311.0,0.0155068]
[1731269898712,0.149078,79316.0,79312.0,0.0155068]
[1731269898909,0.126076,79317.0,79313.0,0.0155068]
[1731269899114,0.023,79318.0,79314.0,0.0155068]
[1731269899315,0.023,79321.0,79314.0,0.0155068]
[1731269899566,0.023,79326.0,79315.0,0.0155068]
[1731269899765,0.126072,79320.0,79316.0,0.0155068]
[1731269899911,0.25212,79327.0,79310.0,0.14738521]
[1731269899912,0.023,79319.0,79317.0,0.01548874]
[1731269900120,0.023,79319.0,79316.0,0.02473152]
[1731269900317,0.023,79322.0,79317.0,0.02139093]
[1731269900513,0.126068,79322.0,79317.0,0.02139093]
[1731269900721,0.126065,79324.0,79317.0,0.02139093]
[1731269900992,0.023,79323.0,79318.0,0.00252129]
[1731269901191,0.023,79323.0,79319.0,0.00252119]
[1731269901341,0.252101,79334.0,79319.0,0.00252119]
[1731269901342,0.023,79330.0,79319.0,0.1284634]
[1731269901546,0.252101,79334.0,79320.0,0.01745859]
[1731269901760,0.126075,79318.0,79313.0,0.18917777]
[1731269901951,0.252114,79329.0,79313.0,0.18917777]
[1731269901952,0.252124,79326.0,79314.0,0.12594221]
[1731269902176,0.252111,79330.0,79314.0,0.15944236]
[1731269902177,0.28860314,79330.0,79314.0,0.15944236]
[1731269902379,0.126068,79323.0,79315.0,0.03738205]
[1731269902579,0.126068,79323.0,79315.0,0.06817155]
[1731269902780,0.023,79322.0,79315.0,0.06817155]
[1731269903147,0.023,79322.0,79316.0,0.0333108]
[1731269903353,0.023,79322.0,79317.0,0.03078609]
[1731269903672,0.023,79322.0,79318.0,0.05296929]
[1731269903875,0.023,79324.0,79318.0,0.0221832]
[1731269904018,0.023,79327.0,79317.0,0.03078609]
[1731269904019,0.149064,79325.0,79319.0,0.03078609]
[1731269904219,0.15074,79325.0,79319.0,0.03078609]
[1731269904429,0.15074,79325.0,79320.0,0.03078609]
[1731269904589,0.024676,79325.0,79321.0,0.03078609]
[1731269904791,0.001676,79325.0,79323.0,0.21975018]
[1731269905044,0.001676,79325.0,79324.0,0.23744925]
[1731269905670,0.001676,79325.0,79324.0,0.2349283]
[1731269906222,0.001676,79325.0,79324.0,0.20414221]
[1731269906435,0.150739,79325.0,79324.0,0.23491855]
[1731269906844,0.024676,79325.0,79324.0,0.26641191]
[1731269908385,0.024676,79325.0,79324.0,0.23491855]
[1731269909786,0.150739,79325.0,79324.0,0.03077634]
[1731269909936,0.150739,79325.0,79313.0,0.02520039]
[1731269909937,0.252133,79323.0,79313.0,0.02520039]
[1731269910138,0.126073,79319.0,79318.0,0.18917777]
[1731269910336,0.149079,79315.0,79314.0,0.14796383]
[1731269910509,0.023,79315.0,79314.0,0.12594221]
[1731269910714,0.023,79318.0,79314.0,0.12594221]
[1731269910989,0.023,79320.0,79315.0,0.00252134]
[1731269911194,0.252132,79324.0,79316.0,0.12594221]
[1731269911398,0.001676,79325.0,79317.0,0.01611426]
[1731269911582,0.001676,79325.0,79318.0,0.12594221]
[1731269911924,0.001676,79325.0,79319.0,0.0154149]
[1731269912138,0.001676,79325.0,79320.0,0.14135711]
[1731269912341,0.25213,79324.0,79321.0,0.01542168]
[1731269912539,0.126066,79323.0,79322.0,0.01542168]
[1731269912949,0.126066,79323.0,79322.0,0.01542157]
[1731269912950,0.149066,79323.0,79322.0,0.01542157]
[1731269913737,0.126081,79314.0,79307.0,0.18917777]
[1731269913932,0.149081,79314.0,79313.0,0.18809691]
[1731269917085,0.126074,79319.0,79313.0,0.18809691]
[1731269917288,0.126074,79319.0,79314.0,0.1413749]
[1731269917493,0.023,79320.0,79315.0,0.01543269]
[1731269917807,0.001676,79323.0,79316.0,0.17610451]
[1731269917808,0.12607,79321.0,79316.0,0.17610451]
[1731269917954,0.12607,79321.0,79317.0,0.0464081]
[1731269918156,0.127743,79323.0,79318.0,0.17235031]
[1731269918382,0.001676,79323.0,79319.0,0.0464081]
[1731269918586,0.001676,79323.0,79320.0,0.17487144]
[1731269918785,0.001676,79323.0,79321.0,0.08350433]
[1731269919012,0.001676,79323.0,79320.0,0.12794221]
[1731269919013,0.001676,79323.0,79322.0,0.14286715]
[1731269919431,0.127742,79323.0,79322.0,0.01692494]
[1731269919779,0.126081,79314.0,79310.0,0.000838]
[1731269919953,0.126081,79314.0,79313.0,0.19147974]
[1731269920538,0.126081,79314.0,79313.0,0.06553753]
[1731269920724,0.149081,79314.0,79313.0,0.06553753]
[1731269921526,0.126081,79314.0,79313.0,0.19147974]
[1731269921927,0.126077,79317.0,79313.0,0.19147974]
[1731269922164,0.252136,79322.0,79314.0,0.16627935]
[1731269922165,0.126079,79315.0,79314.0,0.16627935]
[1731269922820,0.126079,79315.0,79314.0,0.04033714]
[1731269923103,0.149079,79315.0,79314.0,0.04033714]
[1731269926155,0.25214,79321.0,79314.0,0.04033714]
[1731269926156,0.25214,79321.0,79314.0,0.16627935]
[1731269926327,0.126072,79320.0,79315.0,0.16880059]
[1731269926563,0.126073,79319.0,79316.0,0.0194839]
[1731269926777,0.252143,79320.0,79317.0,0.03979504]
[1731269927013,0.001676,79323.0,79318.0,0.19835068]
[1731269927229,0.001676,79323.0,79319.0,0.07040847]
[1731269927443,0.252105,79332.0,79320.0,0.19635068]
[1731269927702,0.252103,79333.0,79321.0,0.09349193]
[1731269927703,0.126058,79329.0,79321.0,0.09349193]
[1731269927909,0.29002817,79338.0,79327.0,0.002]
[1731269928118,0.252092,79336.0,79328.0,0.19887144]
[1731269928276,0.252089,79337.0,79330.0,0.18917777]
[1731269928534,0.001428,79338.0,79331.0,0.19887143]
[1731269928726,0.126047,79336.0,79332.0,0.07040847]
[1731269928934,0.25351,79340.0,79333.0,0.22089626]
[1731269928935,0.001428,79340.0,79333.0,0.22089626]
[1731269929134,0.001428,79340.0,79334.0,0.07040847]
[1731269929315,0.001428,79355.0,79340.0,0.1302]
[1731269929513,0.03794017,79355.0,79343.0,0.005]
[1731269929844,0.001428,79355.0,79344.0,0.24414187]
[1731269930228,0.001428,79355.0,79345.0,0.19843847]
[1731269930422,0.12602,79353.0,79346.0,0.24287171]
[1731269930542,0.126015,79356.0,79347.0,0.11944975]
[1731269930741,0.05476825,79361.0,79347.0,0.11944975]
[1731269930742,0.126017,79355.0,79348.0,0.1169295]
[1731269931017,0.03651217,79358.0,79349.0,0.26429006]
[1731269931229,0.16251417,79364.0,79355.0,0.005]
[1731269931431,0.126009,79360.0,79356.0,0.24287171]
[1731269931636,0.126011,79358.0,79357.0,0.13895438]
[1731269931844,0.126011,79358.0,79357.0,0.26489659]
[1731269932005,0.126011,79358.0,79357.0,0.09243335]
[1731269932207,0.126011,79358.0,79357.0,0.07040847]
[1731269933140,0.023,79359.0,79357.0,0.07020014]
[1731269933321,0.126011,79358.0,79352.0,0.007]
[1731269933644,0.16262195,79357.0,79353.0,0.19610565]
[1731269933855,0.16262195,79357.0,79354.0,0.07016344]
[1731269934000,0.16262195,79357.0,79352.0,0.007]
[1731269934001,0.023,79353.0,79341.0,0.18917777]
[1731269934198,0.023,79353.0,79342.0,0.19608731]
[1731269934199,0.126035,79343.0,79342.0,0.19608731]
[1731269934394,0.126035,79343.0,79342.0,0.23999177]
[1731269934620,0.1626647,79343.0,79342.0,0.23999177]
[1731269934820,0.126035,79343.0,79342.0,0.23968039]
[1731269935116,0.126035,79343.0,79342.0,0.19577593]
[1731269935905,0.126035,79343.0,79342.0,0.09564718]
[1731269936086,0.126046,79336.0,79332.0,0.002]
[1731269936252,0.126046,79336.0,79333.0,0.12594221]
[1731269936462,0.126049,79334.0,79333.0,0.12594221]
[1731269937098,0.126046,79336.0,79333.0,0.13094221]
[1731269937247,0.126046,79336.0,79334.0,0.02439875]
[1731269937476,0.36837483,79335.0,79334.0,0.02439875]
[1731269937675,0.126066,79323.0,79322.0,0.02439875]
[1731269937877,0.252133,79323.0,79318.0,0.02439875]
[1731269938120,0.023,79318.0,79316.0,0.18917777]
[1731269938319,0.023,79317.0,79316.0,0.22155737]
[1731269938526,0.023,79317.0,79316.0,0.0323796]
[1731269938736,0.023,79326.0,79320.0,0.002]
[1731269938913,0.023,79322.0,79320.0,0.12794221]
[1731269939116,0.12607,79321.0,79320.0,0.12794221]
[1731269939378,0.12607,79321.0,79320.0,0.15034435]
[1731269939726,0.12607,79321.0,79320.0,0.12594221]
[1731269939939,0.126067,79323.0,79320.0,0.15034435]
[1731269940191,0.149068,79322.0,79321.0,0.02440214]
[1731269940331,0.09128043,79341.0,79321.0,0.16754262]
[1731269940661,0.149054,79331.0,79330.0,0.002]
[1731269940803,0.023,79331.0,79330.0,0.002]
[1731269941004,0.252096,79335.0,79333.0,0.002]
[1731269941005,0.023,79335.0,79333.0,0.002]
[1731269941316,0.023,79335.0,79333.0,0.01279422]
[1731269941562,0.127722,79336.0,79333.0,0.01279422]
[1731269941563,0.001676,79336.0,79334.0,0.12594221]
[1731269942263,0.126047,79335.0,79334.0,0.12594221]
[1731269942406,0.001676,79336.0,79333.0,0.01279422]
[1731269942611,0.126055,79331.0,79325.0,0.007]
[1731269942918,0.001676,79336.0,79330.0,0.02474469]
[1731269942919,0.126051,79333.0,79330.0,0.02474469]
[1731269943141,0.023,79335.0,79331.0,0.12594221]
[1731269943357,0.001676,79336.0,79335.0,0.131047]
[1731269943524,0.12603,79346.0,79343.0,0.002]
[1731269943767,0.12603,79346.0,79344.0,0.12594221]
[1731269943971,0.12603,79346.0,79345.0,0.0301867]
[1731269944752,0.14903,79346.0,79345.0,0.0301867]
[1731269944978,0.14903,79346.0,79345.0,0.02794973]
[1731269945284,0.023,79345.0,79344.0,0.12594221]
[1731269945458,0.149031,79345.0,79344.0,0.12594221]
[1731269946226,0.149031,79345.0,79344.0,0.1500906]
[1731269946461,0.149031,79345.0,79344.0,0.16751477]
[1731269946638,0.252019,79359.0,79344.0,0.16951477]
[1731269946789,0.252019,79359.0,79345.0,0.04829945]
[1731269946989,0.252019,79359.0,79346.0,0.17424166]
[1731269947199,0.126012,79358.0,79347.0,0.05741837]
[1731269947404,0.251997,79366.0,79363.0,0.002]
[1731269947599,0.001428,79367.0,79364.0,0.02414839]
[1731269947808,0.001428,79367.0,79366.0,0.002]
[1731269948015,0.001428,79367.0,79366.0,0.18267157]
[1731269948227,0.001428,79367.0,79366.0,0.16717863]
[1731269948637,0.001428,79367.0,79366.0,0.16715062]
[1731269948838,0.001428,79367.0,79366.0,0.30314862]
[1731269949472,0.001428,79367.0,79366.0,0.40814862]
[1731269949663,0.001428,79367.0,79366.0,0.48637147]
[1731269949976,0.001678,79374.0,79373.0,0.142987]
[1731269950176,0.001678,79374.0,79373.0,0.31065663]
[1731269950382,0.127378,79397.0,79388.0,0.002]
[1731269950678,0.001428,79397.0,79389.0,0.16515062]
[1731269950877,0.001428,79397.0,79390.0,0.05663258]
[1731269951109,0.001428,79397.0,79391.0,0.16766942]
[1731269951315,0.001428,79397.0,79392.0,0.02412864]
[1731269951465,0.001428,79397.0,79391.0,0.14102198]
[1731269951466,0.001428,79397.0,79396.0,0.002]